[Event "Khanty-Mansiysk FIDE GP (Women)"]
[Site "Khanty-Mansiysk"]
[Date "2014.04.16"]
[Round "7"]
[White "Kosintseva, Tatiana"]
[Black "Stefanova, Antoaneta"]
[Result "1/2-1/2"]
[ECO "C60"]
[WhiteElo "2496"]
[BlackElo "2489"]
[Annotator "ChessBase Website"]
[PlyCount "71"]
[EventDate "2014.04.09"]
[EventType "tourn"]
[EventRounds "11"]
[EventCountry "RUS"]
[EventCategory "10"]
[SourceTitle "CBM 160"]
[Source "ChessBase"]
[SourceDate "2014.05.15"]
[SourceVersion "1"]
[SourceVersionDate "2014.05.15"]
[SourceQuality "1"]
[TimeControl "40/5400+30:1800+30"]
[WhiteClock "1:30:00"]
[BlackClock "1:30:00"]

1. e4 {[%emt 0:00:00]} e5 {[%emt 0:00:00]} 2. Nf3 {[%emt 0:00:00]} Nc6 {
[%emt 0:00:00]} 3. Bb5 {[%emt 0:00:00]} g6 {[%emt 0:00:00]} 4. d4 {[%emt 0:03:
20]} exd4 {[%emt 0:00:00]} 5. Bg5 {[%emt 0:00:40]} Be7 {[%emt 0:00:07]} 6. Bxe7
{[%emt 0:00:09]} Qxe7 {[%emt 0:00:04]} 7. Bxc6 {[%emt 0:00:40]} dxc6 {[%emt 0:
01:11]} 8. Qxd4 {[%emt 0:00:28]} Nf6 {[%emt 0:00:11]} 9. Nc3 {[%emt 0:00:44]}
Bg4 {[%emt 0:00:34]} 10. O-O-O {[%emt 0:04:00]} (10. Nd2 c5 11. Qe3 O-O-O 12.
h3 Bd7 13. O-O-O Bc6 14. Rhe1 Rhe8 15. f3 b6 16. Qg5 Nh5 17. Qxe7 Rxe7 18. Nc4
Rxd1+ 19. Kxd1 Nf4 20. Ne3 f5 21. exf5 gxf5 22. Ne2 Rd7+ 23. Kc1 Nxe2+ 24. Rxe2
f4 25. Ng4 Bb5 26. Re4 Bf1 27. Rxf4 Bxg2 28. h4 Rd4 29. Rf8+ Rd8 30. Rf7 Rd7
31. Rf8+ Rd8 32. Rxd8+ Kxd8 33. f4 Ke7 34. Kd2 Be4 35. c3 Ke6 36. Ne3 a5 37. a3
b5 38. Ke2 h5 39. Kd2 a4 {Ismagambetov,A (2493)-Stevic,H (2607) Dubai 2014 1/
2-1/2}) 10... Bxf3 {[%emt 0:00:54]} 11. gxf3 {[%emt 0:00:05]} O-O {[%emt 0:00:
12]} 12. Qe3 {[%emt 0:07:29]} Rfd8 $146 {[%emt 0:20:44]} (12... Rfe8 13. f4
Rad8 14. f5 a5 15. Rxd8 Qxd8 16. f4 b5 17. Rd1 Qc8 18. Qd4 Nh5 19. fxg6 hxg6
20. f5 b4 21. Na4 Nf4 22. Kb1 Qa6 23. Nc5 Qe2 24. Nd7 Nh5 25. e5 gxf5 26. Rg1+
Kh7 27. Qh4 {1-0 (27) Gopal,G (2604)-Sokolov,I (2654) Sarajevo 2010}) 13. Rxd8+
{[%emt 0:16:36]} Rxd8 {[%emt 0:06:14]} 14. f4 {[%emt 0:12:40]} b6 {[%emt 0:15:
02]} 15. f5 {[%emt 0:04:56]} Re8 {[%emt 0:01:58]} 16. fxg6 {[%emt 0:15:56]}
hxg6 {[%emt 0:00:47]} 17. f4 {[%emt 0:09:46]} Qe6 {[%emt 0:16:19]} 18. e5 {
[%emt 0:08:09]} Nd5 {[%emt 0:02:13]} 19. Qf3 {[%emt 0:00:13]} Nxc3 {[%emt 0:04:
07]} 20. Qxc3 {[%emt 0:00:06]} Qxa2 {[%emt 0:09:10]} 21. b3 {[%emt 0:00:49]
[%csl Ra2] An unusual Spanish variation lead to an unusual game. In the major
piece endgame White tried to trap Black's queen out of activity by sacrificing
a pawn, but Stefanova gave it back to force a drawn rook endgame.} b5 {[%emt 0:
00:06]} 22. Re1 {[%emt 0:06:14]} a5 {[%emt 0:10:42]} 23. f5 {[%emt 0:01:57]} b4
{[%emt 0:02:34]} 24. Qd3 {[%emt 0:01:14]} Qa1+ {[%emt 0:07:02]} 25. Kd2 {
[%emt 0:00:02]} Qc3+ {[%emt 0:00:05]} 26. Qxc3 {[%emt 0:00:08]} bxc3+ {[%emt 0:
00:03]} 27. Kxc3 {[%emt 0:00:10]} gxf5 {[%emt 0:00:02]} 28. Kd4 {[%emt 0:02:30]
} Kg7 {[%emt 0:00:29]} 29. Rf1 {[%emt 0:04:46]} Kg6 {[%emt 0:00:58]} 30. Rg1+ {
[%emt 0:00:06]} Kh6 {[%emt 0:01:23]} 31. Rf1 {[%emt 0:00:33]} Kg5 {[%emt 0:00:
24]} 32. Rg1+ {[%emt 0:00:32]} Kf4 {[%emt 0:00:29]} 33. Rf1+ {[%emt 0:00:09]}
Kg5 {[%emt 0:00:38]} 34. Rg1+ {[%emt 0:00:15]} Kf4 {[%emt 0:00:39]} 35. Rf1+ {
[%emt 0:00:05]} Kg5 {[%emt 0:00:07]} 36. Rg1+ {[%emt 0:00:06]} 1/2-1/2